fUSD/lending_fUSD_20250109
["ID","MTS","AMOUNT","RATE_DAILY","PERIOD"]
[348296552,1736435483502,-206.68611674,0.000122,2]
[348296553,1736435483512,-500.0,0.00012202,2]
[348296554,1736435483522,-2000.0,0.00012202,2]
[348296555,1736435483531,-200.0,0.00012202,2]
[348296556,1736435483540,-152.0,0.00012212,3]
[348296557,1736435483551,-150.0,0.00012221,2]
[348296558,1736435483561,-1500.0,0.00012231,2]
[348296559,1736435483572,-12850.10830934,0.00012254,3]
[348296560,1736435483584,-8790.39,0.00012254,3]
[348296561,1736435483596,-522.27499128,0.00012254,3]
[348296562,1736435483607,-2732.31868738,0.00012254,3]
[348296563,1736435484103,-500.0,9.953e-05,2]
[348296564,1736435484112,-261.76650416,9.953e-05,2]
[348296565,1736435484122,-500.0,9.976e-05,2]
[348296566,1736435484131,-500.0,9.977e-05,2]
[348296567,1736435484141,-500.0,9.977e-05,2]
[348296568,1736435484150,-500.0,0.0001025,2]
[348296569,1736435484160,-500.0,0.00010251,2]
[348296570,1736435484170,-207.84017639,0.00010524,2]
[348296571,1736435484179,-500.0,0.00010525,2]
[348296572,1736435484189,-500.0,0.00010542,2]
[348296573,1736435484198,-500.0,0.00010798,2]
[348296574,1736435484208,-500.0,0.00010816,2]
[348296575,1736435484217,-500.0,0.00011072,2]
[348296576,1736435484227,-500.0,0.00011346,2]
[348296577,1736435484236,-535.91,0.0001162,2]
[348296578,1736435484247,-1565.91859864,0.00012254,3]
[348296579,1736435484261,-260.48208148,0.00012254,3]
[348296580,1736435484303,-500.0,0.00010251,2]
[348296581,1736435484313,-500.0,0.00010799,2]
[348296582,1736435484324,-6081.57756993,0.00012254,3]
[348296583,1736435484336,-7506.6764129,0.00012254,3]
[348296584,1736435484346,-150.0,0.00012264,2]
[348296585,1736435484356,-150.0,0.00012266,2]
[348296586,1736435484366,-5215.64586138,0.00012271,4]
[348296587,1736435484376,-5215.64606138,0.00012271,4]
[348296588,1736435484385,-150.0,0.00012274,2]
[348296589,1736435484395,-150.00000001,0.00012274,2]
[348296590,1736435484405,-150.0,0.00012274,2]
[348296591,1736435484414,-150.0,0.00012286,2]
[348296592,1736435484424,-150.0,0.00012292,2]
[348296593,1736435484434,-20086.22176043,0.00012297,3]
[348296594,1736435484446,-2918.09792665,0.00012297,3]
[348296595,1736435484458,-536.77992245,0.00012297,3]
[348296596,1736435484469,-372.34049029,0.00012297,3]
[348296597,1736435484481,-632.92146505,0.00012297,3]
[348296598,1736435484492,-480.87866883,0.00012297,3]
[348296599,1736435484505,-1824.80420623,0.00012297,3]
[348296600,1736435484517,-1392.94624284,0.00012297,3]
[348296601,1736435484528,-828091.95676492,0.00012297,3]
[348296602,1736435484541,-1119.63682782,0.00012299,3]
[348296603,1736435484550,-1119.63682782,0.00012299,3]
[348296604,1736435484561,-1119.63682782,0.00012299,3]
[348296605,1736435484571,-1119.6368278,0.00012299,3]
[348296606,1736435484581,-1119.63682782,0.00012299,3]
[348296607,1736435484591,-1119.63682782,0.00012299,3]
[348296608,1736435484600,-749735.89069248,0.000123,4]
[348296609,1736435484610,-888224.67161879,0.000123,2]
[348296610,1736435484624,-930.43,0.000123,2]
[348296611,1736435484635,-3631.47800008,0.000123,2]
[348296612,1736435484647,-809.91442546,0.000123,2]
[348296613,1736435484657,-596.0138533,0.000123,2]
[348296614,1736435484669,-157395.6758918,0.000123,2]
[348296615,1736435484680,-8706.80558528,0.000123,2]
[348296616,1736435484691,-19123.17349961,0.000123,2]
[348296617,1736435484702,-101262.3265685,0.000123,2]
[348296618,1736435485007,-500.0,9.976e-05,2]
[348296619,1736435485018,-500.0,9.976e-05,2]
[348296620,1736435485028,-500.0,9.977e-05,2]
[348296621,1736435485039,-500.0,9.977e-05,2]
[348296622,1736435485048,-500.0,9.978e-05,2]
[348296623,1736435485058,-500.0,0.0001025,2]
[348296624,1736435485068,-500.0,0.00010251,2]
[348296625,1736435485077,-500.0,0.00010251,2]
[348296626,1736435485086,-500.0,0.00010524,2]
[348296627,1736435485095,-500.0,0.00010525,2]
[348296628,1736435485105,-500.0,0.00010525,2]
[348296629,1736435485114,-500.0,0.00010525,2]
[348296630,1736435485124,-153.0,0.0001061,2]
[348296631,1736435485133,-500.0,0.00010799,2]
[348296632,1736435485143,-500.0,0.00010799,2]
[348296633,1736435485153,-362.4,0.00010799,2]
[348296634,1736435485162,-223.32,0.00011073,2]
[348296635,1736435485171,-500.0,0.00011073,2]
[348296636,1736435485180,-500.0,0.0001109,2]
[348296637,1736435485190,-207.55,0.00011364,2]
[348296638,1736435485199,-291912.52506107,0.000123,2]
[348296639,1736435485788,-152.06890315,9.953e-05,2]
[348296640,1736435485801,-500.0,9.953e-05,2]
[348296641,1736435485814,-500.0,9.976e-05,2]
[348296642,1736435485827,-500.0,9.976e-05,2]
[348296643,1736435485840,-500.0,9.977e-05,2]
[348296644,1736435485853,-500.0,9.978e-05,2]
[348296645,1736435485866,-500.0,0.0001025,2]
[348296646,1736435485879,-500.0,0.0001025,2]
[348296647,1736435485892,-500.0,0.0001025,2]
[348296648,1736435485907,-500.0,0.00010252,2]
[348296649,1736435485920,-500.0,0.00010252,2]
[348296650,1736435485933,-1000.0,0.00010501,2]
[348296651,1736435485947,-177.28,0.00010524,2]
[348296652,1736435485960,-500.0,0.00010524,2]
[348296653,1736435485974,-500.0,0.00010526,2]
[348296654,1736435485987,-328.15,0.00010798,2]
[348296655,1736435485999,-500.0,0.00010798,2]
[348296656,1736435486012,-500.0,0.000108,2]
[348296657,1736435486025,-500.0,0.00011072,2]
[348296658,1736435486041,-12.33079502,0.00011346,2]
[348296659,1736435486057,-487.66920498,0.00011346,2]
[348296660,1736435486070,-468.29,0.0001162,2]
[348296661,1736435486083,-12771.21103944,0.000123,2]
[348296662,1736435486098,-50580.91430483,0.000123,2]
[348296663,1736435486115,-332.36467106,0.000123,2]
[348296664,1736435486131,-3624.14394963,0.000123,2]
[348296665,1736435486146,-1139.4744,0.000123,2]
[348296666,1736435486162,-586.72185729,0.000123,2]
[348296667,1736435486177,-18135.69899995,0.000123,2]
[348296680,1736435703355,193.0,0.000123,30]
[348296681,1736435703683,193.0,0.00012811,30]
[348296682,1736435704304,193.0,0.00013321,30]
[348296683,1736435913021,5000.0,0.0002,120]
[348296684,1736436003084,164.0,0.000123,30]
[348296685,1736436003962,164.0,0.00012811,30]
[348296686,1736436004338,164.0,0.00013321,30]
[348296687,1736436012609,552.51,8.219e-05,2]
[348296688,1736436306013,155.0,0.000123,30]
[348296689,1736436306705,155.0,0.00012871,30]
[348296690,1736436307192,155.0,0.00013441,30]
[348296702,1736436354508,2024.9631996,6.94e-05,2]
[348296703,1736436355440,8133.38537679,0.00017,120]
[348296704,1736436417286,-245.72222485,0.0002,60]
[348296705,1736436417315,-5387.75772,0.0002,60]
[348296706,1736436417351,-150.0,0.0002006,120]
[348296707,1736436417381,-150.0,0.00020138,120]
[348296708,1736436417409,-150.0,0.00020218,120]
[348296709,1736436417437,-150.0,0.00020377,120]
[348296710,1736436417464,-150.0,0.00020514,120]
[348296711,1736436417491,-150.0,0.00020544,120]
[348296712,1736436417518,-150.0,0.00020594,120]
[348296713,1736436417547,-150.0,0.00020986,120]
[348296714,1736436417574,-2230.01402993,0.00021,120]
[348296715,1736436417601,-800.0,0.00021,120]
[348296716,1736436417632,-150.0,0.0002103,120]
[348296717,1736436417662,-150.0,0.00021134,120]
[348296718,1736436417690,-150.0,0.00021182,120]
[348296719,1736436417719,-150.0,0.00021348,120]
[348296720,1736436417751,-1000.0,0.00021917,120]
[348296721,1736436417779,-1000.0,0.00021917,120]
[348296722,1736436417806,-932.95408251,0.00021917,120]
[348296723,1736436417834,-2000.0,0.0002213,120]
[348296724,1736436417861,-150.0,0.00022358,120]
[348296725,1736436417891,-150.0,0.00022421,120]
[348296726,1736436417922,-200.0,0.00022459,120]
[348296727,1736436417951,-150.0,0.00022565,120]
[348296728,1736436417978,-150.0,0.00022735,120]
[348296729,1736436418007,-150.0,0.00022954,120]
[348296730,1736436418037,-1000.0,0.00023,120]
[348296731,1736436418072,-500.0,0.00023009,120]
[348296732,1736436418099,-617.473284,0.00023009,120]
[348296733,1736436418127,-171.19221968,0.00023014,120]
[348296734,1736436418154,-150.0,0.00023033,120]
[348296735,1736436418181,-2000.0,0.00023191,120]
[348296736,1736436418208,-150.0,0.00023229,120]
[348296737,1736436418236,-200.0,0.00023683,120]
[348296738,1736436418265,-150.0,0.00023751,120]
[348296739,1736436418293,-150.0,0.00023925,120]
[348296740,1736436418321,-632.1281865,0.00024,120]
[348296741,1736436418349,-1000.0,0.00024,120]
[348296742,1736436418383,-150.0,0.00024194,120]
[348296743,1736436418412,-2000.0,0.00024252,120]
[348296744,1736436418440,-150.0,0.00024289,120]
[348296745,1736436418467,-150.0,0.00024361,120]
[348296746,1736436418495,-150.0,0.00024462,120]
[348296747,1736436418523,-500.0,0.00024509,120]
[348296748,1736436418554,-150.0,0.00024527,120]
[348296749,1736436418582,-507.3,0.00024657,120]
[348296750,1736436418609,-507.3,0.00024657,120]
[348296751,1736436418639,-507.3,0.00024657,120]
[348296752,1736436418666,-507.3,0.00024657,120]
[348296753,1736436418692,-507.3,0.00024657,120]
[348296754,1736436418723,-507.3,0.00024657,120]
[348296755,1736436418749,-507.3,0.00024657,120]
[348296756,1736436418777,-507.3,0.00024657,120]
[348296757,1736436418805,-507.3,0.00024657,120]
[348296758,1736436418833,-507.3,0.00024657,120]
[348296759,1736436418860,-507.3,0.00024657,120]
[348296760,1736436418888,-507.3,0.00024657,120]
[348296761,1736436418918,-507.3,0.00024657,120]
[348296762,1736436418947,-507.3,0.00024657,120]
[348296763,1736436418975,-507.3,0.00024657,120]
[348296764,1736436419377,-507.3,0.00024657,120]
[348296765,1736436419410,-507.3,0.00024657,120]
[348296766,1736436419438,-507.3,0.00024657,120]
[348296767,1736436419467,-507.3,0.00024657,120]
[348296768,1736436419498,-507.3,0.00024657,120]
[348296769,1736436419526,-507.3,0.00024657,120]
[348296770,1736436419553,-507.3,0.00024657,120]
[348296771,1736436419581,-507.3,0.00024657,120]
[348296772,1736436419608,-507.3,0.00024657,120]
[348296773,1736436419638,-160.98,0.00024658,120]
[348296774,1736436419666,-150.0,0.00024706,120]
[348296775,1736436419695,-1000.0,0.000248,120]
[348296776,1736436419723,-200.0,0.00024908,120]
[348296777,1736436419750,-258.30015081,0.0002496,60]
[348296778,1736436419778,-670.04036079,0.0002496,60]
[348296779,1736436419806,-150.5,0.0002497,120]
[348296780,1736436419832,-150.5,0.0002497,120]
[348296781,1736436419859,-150.5,0.0002497,120]
[348296782,1736436419887,-150.5,0.0002497,120]
[348296783,1736436419919,-150.5,0.0002498,120]
[348296784,1736436419946,-150.5,0.0002498,120]
[348296785,1736436419972,-150.5,0.0002498,120]
[348296786,1736436420000,-150.5,0.0002498,120]
[348296787,1736436420027,-150.5,0.0002498,120]
[348296788,1736436420055,-150.5,0.0002498,120]
[348296789,1736436420082,-265.22,0.0002498,120]
[348296790,1736436420110,-161.42,0.0002499,120]
[348296791,1736436420139,-150.5,0.0002499,120]
[348296792,1736436420167,-150.5,0.0002499,120]
[348296793,1736436420194,-150.5,0.0002499,120]
[348296794,1736436420220,-179.02,0.0002499,120]
[348296795,1736436420247,-150.5,0.0002499,120]
[348296796,1736436420275,-150.5,0.0002499,120]
[348296797,1736436420303,-150.5,0.0002499,120]
[348296798,1736436420331,-150.5,0.0002499,120]
[348296799,1736436420360,-264.96,0.0002499,120]
[348296800,1736436420391,-1000.0,0.00024999,60]
[348296801,1736436420419,-1000.0,0.00024999,90]
[348296802,1736436420447,-3196.81961605,0.00025,60]
[348296803,1736436420475,-209.05356234,0.00025,120]
[348296804,1736436420502,-1000.0,0.00025,120]
[348296805,1736436420531,-500.0,0.00025,120]
[348296806,1736436420558,-500.0,0.00025,120]
[348296807,1736436420586,-5406.48277572,0.00025,120]
[348296808,1736436420613,-150.0,0.00025133,120]
[348296809,1736436420645,-150.0,0.00025213,120]
[348296810,1736436420673,-2000.0,0.00025312,120]
[348296811,1736436420701,-150.0,0.00025381,120]
[348296812,1736436420732,-150.0,0.00025399,120]
[348296813,1736436420762,-1000.0,0.000254,120]
[348296814,1736436420792,-500.0,0.00025409,120]
[348296815,1736436420820,-150.0,0.00025423,120]
[348296816,1736436420846,-150.0,0.00025434,120]
[348296817,1736436420874,-150.0,0.00025499,120]
[348296818,1736436420903,-11539.0,0.000255,120]
[348296819,1736436420932,-150.0,0.00025659,120]
[348296820,1736436420960,-150.0,0.00025783,120]
[348296821,1736436420987,-150.0,0.00025963,120]
[348296822,1736436421014,-2421.24819891,0.00026,120]
[348296823,1736436421042,-1000.0,0.00026,120]
[348296824,1736436421069,-500.0,0.00026009,120]
[348296825,1736436421096,-500.0,0.00026009,120]
[348296826,1736436421126,-150.0,0.00026082,120]
[348296827,1736436421152,-200.0,0.00026133,120]
[348296828,1736436421180,-2000.0,0.00026373,120]
[348296829,1736436421210,-150.0,0.00026425,120]
[348296830,1736436421237,-500.0,0.00026609,120]
[348296831,1736436421265,-555.55555,0.00027,120]
[348296832,1736436421292,-773.28714679,0.00027,120]
[348296833,1736436421319,-678.57919234,0.00027,120]
[348296834,1736436421345,-2000.0,0.00027,120]
[348296835,1736436421374,-300.0,0.00027,60]
[348296836,1736436421402,-2000.0,0.00027,120]
[348296837,1736436421429,-1000.0,0.00027,60]
[348296838,1736436421458,-2005.66,0.00027,90]
[348296839,1736436421488,-150.0,0.00027085,120]
[348296840,1736436421517,-555.55555,0.000272,120]
[348296841,1736436421546,-500.0,0.00027209,120]
[348296842,1736436421574,-499.46551377,0.000273,120]
[348296843,1736436421600,-200.0,0.00027358,120]
[348296844,1736436421627,-1079.55430659,0.0002736,120]
[348296845,1736436421656,-200.00388124,0.00027397,60]
[348296846,1736436425490,800.0,0.00027397,120]
[348296858,1736436446556,-5760.28150031,8.762e-05,2]
[348296859,1736436451850,-10000.0,8.762e-05,2]
[348296863,1736436456165,-10000.0,8.762e-05,2]
[348296864,1736436460321,-10000.0,8.762e-05,2]
[348296865,1736436464233,1000000.0,0.00027397,59]
[348296866,1736436464830,-10000.0,8.762e-05,2]
[348296867,1736436469509,-10000.0,8.762e-05,2]
[348296868,1736436473920,-10000.0,8.762e-05,2]
[348296869,1736436478993,-10000.0,8.762e-05,2]
[348296870,1736436482598,-10000.0,8.762e-05,2]
[348296871,1736436486825,-10000.0,8.762e-05,2]
[348296872,1736436486859,1000001.0,0.00027397,59]
[348296873,1736436488746,800.0,0.00027397,120]
[348296874,1736436489695,1000002.0,0.00027397,59]
[348296875,1736436491417,-10000.0,8.762e-05,2]
[348296876,1736436492479,1000003.0,0.00027397,59]
[348296877,1736436495078,1000004.0,0.00027397,59]
[348296892,1736436495783,-10000.0,8.762e-05,2]
[348296913,1736436497922,1000005.0,0.00027397,59]
[348296914,1736436500322,552.2273854,0.00012,30]
[348296915,1736436500797,1000006.0,0.00027397,59]
[348296916,1736436501219,-5687.69849969,8.762e-05,2]
[348296917,1736436501243,-1943.1184,8.762e-05,2]
[348296918,1736436503551,1000007.0,0.00027397,59]
[348296919,1736436506618,1000008.0,0.00027397,59]
[348296920,1736436510385,1000009.0,0.00027397,59]
[348296921,1736436513382,757.2508,8.662e-05,2]
[348296961,1736436531608,265.5358,8.662e-05,2]
[348297535,1736436605243,155.0,8.662e-05,30]
[348297536,1736436605601,155.0,9.615e-05,30]
[348297538,1736436605936,155.0,0.00010567,30]
[348297539,1736436606270,155.0,0.0001152,30]
[348297540,1736436606640,155.0,0.00012473,30]
[348297541,1736436606999,155.0,0.00013426,30]
[348297553,1736436631922,-407.01,9.179e-05,2]
[348297554,1736436631933,-374.08,9.185e-05,2]
[348297555,1736436631943,-1000.0,9.201e-05,2]
[348297557,1736436631953,-250.0,9.257e-05,2]
[348297559,1736436631963,-250.0,9.282e-05,2]
[348297561,1736436631973,-68.91,9.331e-05,2]
[348297563,1736436632259,-181.09,9.331e-05,2]
[348297564,1736436632269,-747.11,9.343e-05,2]
[348297565,1736436632282,-876.10249998,9.457e-05,2]
[348297566,1736436632294,-1640.44716228,9.457e-05,2]
[348297567,1736436632306,-933.08966313,9.457e-05,2]
[348297568,1736436632318,-1844.35287161,9.457e-05,2]
[348297569,1736436632329,-2502.5,9.457e-05,2]
[348297570,1736436632341,-11238.0690904,9.457e-05,2]
[348297571,1736436632352,-340.000016,9.457e-05,2]
[348297572,1736436632364,-365.85024,9.457e-05,2]
[348297573,1736436632375,-5034.6758218,9.457e-05,2]
[348297574,1736436632386,-2205.72899504,9.457e-05,2]
[348297575,1736436632396,-1778.76851487,9.46e-05,2]
[348297576,1736436632407,-22121.23148513,9.46e-05,2]
[348297577,1736436632417,-2500.0,9.876e-05,2]
[348297578,1736436632427,-500.0,9.876e-05,2]
[348297579,1736436632436,-1032.3608,9.945e-05,2]
[348297580,1736436632446,-6120.24812345,9.97e-05,2]
[348297581,1736436632458,-7023.40569243,9.97e-05,2]
[348297582,1736436632467,-1492.7,9.972e-05,2]
[348297583,1736436632477,-3591.86,9.972e-05,2]
[348297584,1736436632487,-1839.54,9.972e-05,2]
[348297585,1736436632496,-500.0,9.972e-05,2]
[348297586,1736436632506,-644.8,9.972e-05,2]
[348297587,1736436632516,-564.2,9.972e-05,2]
[348297588,1736436632526,-2239.25,9.972e-05,2]
[348297589,1736436632535,-500.0,9.972e-05,2]
[348297590,1736436632545,-975.13,9.972e-05,2]
[348297591,1736436632555,-42659.8718553,9.973e-05,2]
[348297592,1736436632566,-7151.14400004,9.973e-05,2]
[348297593,1736436632577,-12844.03892701,9.973e-05,2]
[348297594,1736436632588,-456.16000023,9.973e-05,2]
[348297596,1736436632599,-1085.423385,9.973e-05,2]
[348297604,1736436632662,-691.94858545,9.973e-05,2]
[348297606,1736436632673,-6315.41566327,9.973e-05,2]
[348297608,1736436632685,-5292.25501952,9.973e-05,2]
[348297610,1736436632696,-66283.6112376,9.973e-05,2]
[348297612,1736436632706,-169.69034395,9.973e-05,2]
[348297614,1736436632715,-500.0,9.973e-05,2]
[348297616,1736436632724,-200.0,9.974e-05,2]
[348297618,1736436632733,-4612.08670804,9.974e-05,2]
[348297620,1736436632743,-200.0,9.975e-05,2]
[348297622,1736436632752,-538.81342235,9.975e-05,2]
[348297624,1736436632762,-500.0,9.975e-05,2]
[348297626,1736436632771,-3375.35,9.975e-05,2]
[348297628,1736436632784,-4928.52,9.975e-05,2]
[348297630,1736436632793,-2890.71,9.975e-05,2]
[348297632,1736436632802,-880.24,9.975e-05,2]
[348297634,1736436632812,-1974.22,9.975e-05,2]
[348297636,1736436632821,-4289.58,9.975e-05,2]
[348297638,1736436632831,-831.5,9.975e-05,2]
[348297640,1736436632840,-500.0,9.975e-05,2]
[348297642,1736436632850,-500.0,9.975e-05,2]
[348297644,1736436632859,-500.0,9.975e-05,2]
[348297646,1736436632868,-1307.71,9.975e-05,2]
[348297648,1736436632879,-500.0,9.975e-05,2]
[348297650,1736436632888,-2655.1,9.975e-05,2]
[348297652,1736436632898,-500.0,9.975e-05,2]
[348297654,1736436632907,-1497.13,9.975e-05,2]
[348297656,1736436632917,-500.0,9.975e-05,2]
[348297658,1736436632926,-2311.97,9.975e-05,2]
[348297660,1736436632936,-500.0,9.975e-05,2]
[348297662,1736436632945,-1102.66,9.975e-05,2]
[348297664,1736436632955,-896.37,9.975e-05,2]
[348297666,1736436632964,-500.0,9.975e-05,2]
[348297668,1736436632973,-500.0,9.975e-05,2]
[348297670,1736436632982,-920.47,9.975e-05,2]
[348297672,1736436632993,-807.99,9.975e-05,2]
[348297674,1736436633003,-692.84,9.975e-05,2]
[348297676,1736436633012,-500.0,9.975e-05,2]
[348297678,1736436633021,-500.0,9.975e-05,2]
[348297680,1736436633035,-200.0,9.976e-05,2]
[348297682,1736436633045,-656.26,9.976e-05,2]
[348297684,1736436633055,-1214.21,9.976e-05,2]
[348297686,1736436633065,-2261.73,9.976e-05,2]
[348297688,1736436633074,-2167.49,9.976e-05,2]
[348297690,1736436633084,-1074.38,9.976e-05,2]
[348297692,1736436633094,-847.04,9.976e-05,2]
[348297694,1736436633103,-1573.658475,9.976e-05,2]
[348297696,1736436633113,-3115.89,9.976e-05,2]
[348297698,1736436633123,-2083.84426,9.976e-05,2]
[348297700,1736436633132,-155.750658,9.976e-05,2]
[348297702,1736436633141,-155.831045,9.976e-05,2]
[348297704,1736436633150,-880.81,9.976e-05,2]
[348297706,1736436633160,-206.581408,9.976e-05,2]
[348297708,1736436633173,-576.33,9.976e-05,2]
[348297710,1736436633183,-169.251625,9.976e-05,2]
[348297712,1736436633192,-500.0,9.976e-05,2]
[348297714,1736436633201,-500.0,9.976e-05,2]
[348297716,1736436633211,-500.0,9.976e-05,2]
[348297718,1736436633220,-500.0,9.976e-05,2]
[348297720,1736436633229,-500.0,9.976e-05,2]
[348297722,1736436633239,-500.0,9.976e-05,2]
[348297724,1736436633248,-500.0,9.976e-05,2]
[348297726,1736436633257,-3162.35,9.976e-05,2]
[348297728,1736436633266,-500.0,9.976e-05,2]
[348297729,1736436633279,-500.0,9.976e-05,2]
[348297731,1736436633288,-500.0,9.976e-05,2]
[348297733,1736436633298,-500.0,9.976e-05,2]
[348297735,1736436633307,-500.0,9.976e-05,2]
[348297737,1736436633316,-500.0,9.976e-05,2]
[348297739,1736436633326,-500.0,9.976e-05,2]
[348297741,1736436633335,-500.0,9.976e-05,2]
[348297743,1736436633346,-500.0,9.976e-05,2]
[348297746,1736436633355,-161.373005,9.976e-05,2]
[348297748,1736436633365,-557.66,9.976e-05,2]
[348297750,1736436633374,-500.0,9.976e-05,2]
[348297751,1736436633384,-500.0,9.976e-05,2]
[348297753,1736436633394,-500.0,9.976e-05,2]
[348297755,1736436633403,-500.0,9.976e-05,2]
[348297757,1736436633412,-500.0,9.976e-05,2]
[348297759,1736436633422,-500.0,9.976e-05,2]
[348297761,1736436633431,-500.0,9.976e-05,2]
[348297763,1736436633440,-169.251625,9.976e-05,2]
[348297765,1736436633450,-500.0,9.976e-05,2]
[348297767,1736436633459,-500.0,9.976e-05,2]
[348297769,1736436633469,-500.0,9.976e-05,2]
[348297771,1736436633479,-500.0,9.976e-05,2]
[348297773,1736436633489,-500.0,9.976e-05,2]
[348297775,1736436633499,-500.0,9.976e-05,2]
[348297777,1736436633508,-500.0,9.976e-05,2]
[348297779,1736436633517,-796.43,9.976e-05,2]
[348297781,1736436633528,-500.0,9.976e-05,2]
[348297783,1736436633538,-500.0,9.976e-05,2]
[348297785,1736436633547,-500.0,9.976e-05,2]
[348297787,1736436633557,-500.0,9.976e-05,2]
[348297789,1736436633567,-827.5,9.976e-05,2]
[348297791,1736436633577,-500.0,9.976e-05,2]
[348297793,1736436633589,-500.0,9.976e-05,2]
[348297795,1736436633599,-500.0,9.976e-05,2]
[348297797,1736436633608,-500.0,9.976e-05,2]
[348297799,1736436633617,-644.72,9.976e-05,2]
[348297801,1736436633627,-500.0,9.976e-05,2]
[348297803,1736436633637,-500.0,9.976e-05,2]
[348297805,1736436633646,-500.0,9.976e-05,2]
[348297807,1736436633656,-500.0,9.976e-05,2]
[348297809,1736436633665,-500.0,9.976e-05,2]
[348297811,1736436633675,-500.0,9.976e-05,2]
[348297813,1736436633685,-500.0,9.976e-05,2]
[348297815,1736436633694,-500.0,9.976e-05,2]
[348297817,1736436633704,-500.0,9.976e-05,2]
[348297819,1736436633713,-500.0,9.976e-05,2]
[348297821,1736436633723,-500.0,9.976e-05,2]
[348297823,1736436633733,-500.0,9.976e-05,2]
[348297825,1736436633742,-500.0,9.976e-05,2]
[348297827,1736436633753,-595.12,9.976e-05,2]
[348297829,1736436633762,-500.0,9.976e-05,2]
[348297831,1736436633772,-500.0,9.976e-05,2]
[348297833,1736436633784,-500.0,9.976e-05,2]
[348297835,1736436633794,-545.19,9.976e-05,2]
[348297837,1736436633803,-500.0,9.976e-05,2]
[348297839,1736436633813,-500.0,9.976e-05,2]
[348297841,1736436633822,-791.87,9.976e-05,2]
[348297843,1736436633832,-565.4,9.976e-05,2]
[348297845,1736436633843,-500.0,9.976e-05,2]
[348297847,1736436633853,-531.1,9.976e-05,2]
[348297849,1736436633863,-500.0,9.976e-05,2]
[348297851,1736436633874,-163.156582,9.976e-05,2]
[348297853,1736436633884,-500.0,9.976e-05,2]
[348297855,1736436633894,-500.0,9.976e-05,2]
[348297857,1736436633903,-500.0,9.976e-05,2]
[348297859,1736436633913,-500.0,9.976e-05,2]
[348297861,1736436633923,-500.0,9.976e-05,2]
[348297863,1736436633933,-500.0,9.976e-05,2]
[348297865,1736436633942,-500.0,9.976e-05,2]
[348297867,1736436633952,-500.0,9.976e-05,2]
[348297869,1736436633962,-500.0,9.976e-05,2]
[348297871,1736436633972,-500.0,9.976e-05,2]
[348297873,1736436633982,-500.0,9.976e-05,2]
[348297875,1736436633998,-500.0,9.976e-05,2]
[348297877,1736436634008,-500.0,9.976e-05,2]
[348297879,1736436634017,-500.0,9.976e-05,2]
[348297881,1736436634030,-500.0,9.976e-05,2]
[348297883,1736436634042,-500.0,9.976e-05,2]
[348297885,1736436634052,-500.0,9.976e-05,2]
[348297887,1736436634062,-500.0,9.976e-05,2]
[348297889,1736436634075,-500.0,9.976e-05,2]
[348297891,1736436634084,-500.0,9.976e-05,2]
[348297892,1736436634095,-500.0,9.976e-05,2]
[348297893,1736436634105,-954.37,9.976e-05,2]
[348297894,1736436634115,-500.0,9.976e-05,2]
[348297895,1736436634125,-500.0,9.976e-05,2]
[348297920,1736436634400,-500.0,9.976e-05,2]
[348297922,1736436634409,-500.0,9.976e-05,2]
[348297924,1736436634418,-500.0,9.976e-05,2]
[348297926,1736436634428,-645.44,9.976e-05,2]
[348297928,1736436634438,-940.21,9.976e-05,2]
[348297930,1736436634448,-1437.36,9.976e-05,2]